[Event "Live Chess"]
[Site "Chess.com"]
[Date "2011.01.20"]
[Round "-"]
[White "hipposcottimus"]
[Black "dirwin74"]
[Result "1-0"]
[CurrentPosition "r4rk1/1p2ppQp/p2p2p1/2p4N/2P2P2/3P4/PP3P1P/R5RK b - -"]
[Timezone "UTC"]
[ECO "B20"]
[ECOUrl "https://www.chess.com/openings/Sicilian-Defense"]
[UTCDate "2011.01.20"]
[UTCTime "18:59:12"]
[WhiteElo "1386"]
[BlackElo "1350"]
[TimeControl "300+3"]
[Termination "hipposcottimus won by checkmate"]
[StartTime "18:59:12"]
[EndDate "2011.01.20"]
[EndTime "19:04:11"]
[Link "https://www.chess.com/game/live/89576108"]

1. e4 {[%clk 0:05:00]} 1... c5 {[%clk 0:05:00]} 2. Bb5 {[%clk 0:05:00.9]} 2... a6 {[%clk 0:04:59.9]} 3. Be2 {[%clk 0:05:03.1]} 3... Nc6 {[%clk 0:05:00.9]} 4. c4 {[%clk 0:05:05.6]} 4... d6 {[%clk 0:04:57.8]} 5. Nf3 {[%clk 0:05:08.2]} 5... Nf6 {[%clk 0:04:59.3]} 6. d3 {[%clk 0:05:09.5]} 6... Nd4 {[%clk 0:05:00]} 7. Nc3 {[%clk 0:05:09]} 7... Nxe2 {[%clk 0:04:58.9]} 8. Nxe2 {[%clk 0:05:07.8]} 8... g6 {[%clk 0:04:59.8]} 9. Ng3 {[%clk 0:05:09]} 9... Bg7 {[%clk 0:05:00.9]} 10. O-O {[%clk 0:05:00.6]} 10... O-O {[%clk 0:05:02.3]} 11. Qc2 {[%clk 0:05:02.8]} 11... Bg4 {[%clk 0:04:43.4]} 12. e5 {[%clk 0:04:54.3]} 12... Bxf3 {[%clk 0:04:35.7]} 13. exf6 {[%clk 0:04:55.7]} 13... Bxf6 {[%clk 0:04:23.2]} 14. gxf3 {[%clk 0:04:54.6]} 14... Bd4 {[%clk 0:04:02.3]} 15. Bh6 {[%clk 0:04:52.7]} 15... Bg7 {[%clk 0:04:01.9]} 16. Qd2 {[%clk 0:04:53.5]} 16... Qd7 {[%clk 0:03:59.2]} 17. Kh1 {[%clk 0:04:40.3]} 17... Qh3 {[%clk 0:03:55.6]} 18. Bxg7 {[%clk 0:04:40.2]} 18... Kxg7 {[%clk 0:03:57]} 19. Rg1 {[%clk 0:04:41.8]} 19... Qe6 {[%clk 0:03:46.9]} 20. Nh5+ {[%clk 0:04:19]} 20... Kg8 {[%clk 0:03:36.5]} 21. Qh6 {[%clk 0:04:18.8]} 21... Qe5 {[%clk 0:03:29.2]} 22. f4 {[%clk 0:03:59.1]} 22... Qg7 {[%clk 0:03:27.7]} 23. Qxg7# {[%clk 0:04:00.3]} 1-0

[Event "Live Chess"]
[Site "Chess.com"]
[Date "2011.01.20"]
[Round "-"]
[White "hipposcottimus"]
[Black "Markjb"]
[Result "1-0"]
[CurrentPosition "r1bq1rk1/1p1ppp1p/p1n3p1/2p5/2P2B2/3P1B2/PQ3PPP/RN3RK1 b - -"]
[Timezone "UTC"]
[ECO "B20"]
[ECOUrl "https://www.chess.com/openings/Sicilian-Defense"]
[UTCDate "2011.01.20"]
[UTCTime "18:55:35"]
[WhiteElo "1379"]
[BlackElo "1317"]
[TimeControl "600+5"]
[Termination "hipposcottimus won by resignation"]
[StartTime "18:55:35"]
[EndDate "2011.01.20"]
[EndTime "18:57:38"]
[Link "https://www.chess.com/game/live/89575036"]

1. e4 {[%clk 0:10:00]} 1... c5 {[%clk 0:10:00]} 2. Bb5 {[%clk 0:10:02.7]} 2... a6 {[%clk 0:09:57]} 3. Be2 {[%clk 0:10:06.5]} 3... Nc6 {[%clk 0:09:59.2]} 4. c4 {[%clk 0:10:10.9]} 4... g6 {[%clk 0:09:57.6]} 5. Nf3 {[%clk 0:10:11]} 5... Bg7 {[%clk 0:10:01.2]} 6. O-O {[%clk 0:10:13.1]} 6... Nf6 {[%clk 0:09:53.3]} 7. d3 {[%clk 0:10:16.5]} 7... O-O {[%clk 0:09:50.6]} 8. e5 {[%clk 0:10:17.4]} 8... Ng4 {[%clk 0:09:48.1]} 9. Bf4 {[%clk 0:10:20.6]} 9... Ngxe5 {[%clk 0:09:48.5]} 10. Qd2 {[%clk 0:09:58.2]} 10... Nxf3+ {[%clk 0:09:48.9]} 11. Bxf3 {[%clk 0:10:02.3]} 11... Bxb2 {[%clk 0:09:52.5]} 12. Qxb2 {[%clk 0:10:05.7]} 1-0

[Event "Live Chess"]
[Site "Chess.com"]
[Date "2011.01.20"]
[Round "-"]
[White "ahmedelmasry"]
[Black "hipposcottimus"]
[Result "1-0"]
[CurrentPosition "r2q1b1r/ppp1kBpp/2n5/4p1B1/6b1/2PP1N2/PP3P2/RN1Q1RK1 b - -"]
[Timezone "UTC"]
[ECO "C23"]
[ECOUrl "https://www.chess.com/openings/Bishops-Opening-2...Nc6"]
[UTCDate "2011.01.20"]
[UTCTime "18:51:21"]
[WhiteElo "1487"]
[BlackElo "1372"]
[TimeControl "780"]
[Termination "ahmedelmasry won by resignation"]
[StartTime "18:51:21"]
[EndDate "2011.01.20"]
[EndTime "18:53:23"]
[Link "https://www.chess.com/game/live/89573780"]

1. e4 {[%clk 0:13:00]} 1... e5 {[%clk 0:13:00]} 2. Bc4 {[%clk 0:12:54.4]} 2... Nc6 {[%clk 0:12:58.1]} 3. c3 {[%clk 0:12:47.5]} 3... Nf6 {[%clk 0:12:48.4]} 4. d3 {[%clk 0:12:39.2]} 4... d5 {[%clk 0:12:47.1]} 5. exd5 {[%clk 0:12:37.9]} 5... Nxd5 {[%clk 0:12:39.5]} 6. Nf3 {[%clk 0:12:28.8]} 6... Bg4 {[%clk 0:12:36.9]} 7. O-O {[%clk 0:12:27.1]} 7... Nf6 {[%clk 0:12:31]} 8. h3 {[%clk 0:12:21.5]} 8... Bh5 {[%clk 0:12:29.5]} 9. g4 {[%clk 0:12:18.9]} 9... Nxg4 {[%clk 0:12:28.3]} 10. hxg4 {[%clk 0:12:17.7]} 10... Bxg4 {[%clk 0:12:27.7]} 11. Bxf7+ {[%clk 0:11:50]} 11... Ke7 {[%clk 0:12:19.1]} 12. Bg5+ {[%clk 0:11:45.5]} 1-0

[Event "Live Chess"]
[Site "Chess.com"]
[Date "2011.01.20"]
[Round "-"]
[White "hipposcottimus"]
[Black "karimsabry"]
[Result "0-1"]
[CurrentPosition "5Bk1/1pp2p2/p1n3r1/4p2Q/2q5/8/PP4PP/5RK1 w - -"]
[Timezone "UTC"]
[ECO "C00"]
[ECOUrl "https://www.chess.com/openings/French-Defense-Normal-Variation"]
[UTCDate "2011.01.20"]
[UTCTime "18:34:57"]
[WhiteElo "1378"]
[BlackElo "1200"]
[TimeControl "600"]
[Termination "karimsabry won on time"]
[StartTime "18:34:57"]
[EndDate "2011.01.20"]
[EndTime "18:48:36"]
[Link "https://www.chess.com/game/live/89568969"]

1. e4 {[%clk 0:10:00]} 1... e6 {[%clk 0:10:00]} 2. d4 {[%clk 0:09:58.5]} 2... h6 {[%clk 0:09:56.9]} 3. e5 {[%clk 0:09:53.7]} 3... d6 {[%clk 0:09:46]} 4. Be2 {[%clk 0:09:42.2]} 4... a6 {[%clk 0:09:42.8]} 5. c4 {[%clk 0:09:36.8]} 5... Bd7 {[%clk 0:09:34]} 6. Nc3 {[%clk 0:09:33.2]} 6... Ne7 {[%clk 0:09:24]} 7. f4 {[%clk 0:09:22.1]} 7... Nf5 {[%clk 0:09:19.3]} 8. Nf3 {[%clk 0:08:20.1]} 8... Be7 {[%clk 0:08:52]} 9. Bd3 {[%clk 0:08:17.6]} 9... Nh4 {[%clk 0:08:46.9]} 10. O-O {[%clk 0:08:13.1]} 10... Nxf3+ {[%clk 0:08:38.2]} 11. Rxf3 {[%clk 0:08:08.1]} 11... O-O {[%clk 0:08:30.2]} 12. Rg3 {[%clk 0:05:19.4]} 12... Kh8 {[%clk 0:08:21]} 13. f5 {[%clk 0:04:31.6]} 13... exf5 {[%clk 0:08:16.2]} 14. Qh5 {[%clk 0:04:16.3]} 14... Kh7 {[%clk 0:07:57.5]} 15. Bxf5+ {[%clk 0:02:47.3]} 15... Bxf5 {[%clk 0:07:53.8]} 16. Qxf5+ {[%clk 0:02:45.9]} 16... g6 {[%clk 0:07:43.5]} 17. Qh3 {[%clk 0:02:44]} 17... h5 {[%clk 0:07:32]} 18. Ne4 {[%clk 0:02:25.8]} 18... dxe5 {[%clk 0:07:26.8]} 19. Ng5+ {[%clk 0:02:21.8]} 19... Bxg5 {[%clk 0:07:18.6]} 20. Bxg5 {[%clk 0:02:20]} 20... Qxd4+ {[%clk 0:07:15.4]} 21. Be3 {[%clk 0:01:52.8]} 21... Qxc4 {[%clk 0:07:06.7]} 22. Rg5 {[%clk 0:01:17]} 22... Nc6 {[%clk 0:07:01.9]} 23. Rf1 {[%clk 0:01:00.1]} 23... Rae8 {[%clk 0:06:48.4]} 24. Rxh5+ {[%clk 0:00:46]} 24... gxh5 {[%clk 0:06:41.7]} 25. Qxh5+ {[%clk 0:00:39]} 25... Kg8 {[%clk 0:06:37.4]} 26. Bh6 {[%clk 0:00:24.6]} 26... Re6 {[%clk 0:06:33.7]} 27. Bxf8 {[%clk 0:00:09.2]} 27... Rg6 {[%clk 0:06:25.3]} 0-1

[Event "Live Chess"]
[Site "Chess.com"]
[Date "2011.01.20"]
[Round "-"]
[White "Tamsley"]
[Black "hipposcottimus"]
[Result "1-0"]
[CurrentPosition "5rk1/p2r1p1p/1p2PQp1/8/8/PP5B/1B6/5RK1 b - -"]
[Timezone "UTC"]
[ECO "D10"]
[ECOUrl "https://www.chess.com/openings/Slav-Defense-3.Nc3"]
[UTCDate "2011.01.20"]
[UTCTime "14:09:30"]
[WhiteElo "1438"]
[BlackElo "1378"]
[TimeControl "300"]
[Termination "Tamsley won on time"]
[StartTime "14:09:30"]
[EndDate "2011.01.20"]
[EndTime "14:19:13"]
[Link "https://www.chess.com/game/live/89501039"]

1. d4 {[%clk 0:05:00]} 1... d5 {[%clk 0:05:00]} 2. c4 {[%clk 0:04:58.6]} 2... c6 {[%clk 0:04:57.5]} 3. Nc3 {[%clk 0:04:56.6]} 3... Nd7 {[%clk 0:04:55.6]} 4. cxd5 {[%clk 0:04:55.7]} 4... cxd5 {[%clk 0:04:53.9]} 5. Nf3 {[%clk 0:04:52]} 5... e6 {[%clk 0:04:52.3]} 6. e3 {[%clk 0:04:48.8]} 6... Ngf6 {[%clk 0:04:45.6]} 7. Be2 {[%clk 0:04:42.4]} 7... Bb4 {[%clk 0:04:41.2]} 8. a3 {[%clk 0:04:39.7]} 8... Bd6 {[%clk 0:04:35.8]} 9. Nb5 {[%clk 0:04:33.8]} 9... Nb6 {[%clk 0:04:23.4]} 10. Nxd6+ {[%clk 0:04:27.4]} 10... Qxd6 {[%clk 0:04:20.7]} 11. O-O {[%clk 0:04:24.5]} 11... O-O {[%clk 0:04:14.6]} 12. Ne5 {[%clk 0:04:21.2]} 12... Nfd7 {[%clk 0:04:07.3]} 13. Nxd7 {[%clk 0:04:06.3]} 13... Nxd7 {[%clk 0:04:05]} 14. b3 {[%clk 0:03:57.6]} 14... Nf6 {[%clk 0:03:58.3]} 15. f3 {[%clk 0:03:49.9]} 15... b6 {[%clk 0:03:53.7]} 16. Bd3 {[%clk 0:03:44.5]} 16... e5 {[%clk 0:03:48.5]} 17. Qc2 {[%clk 0:03:20.6]} 17... e4 {[%clk 0:03:39.6]} 18. fxe4 {[%clk 0:03:16.9]} 18... dxe4 {[%clk 0:03:37.3]} 19. Bxe4 {[%clk 0:03:16]} 19... Rb8 {[%clk 0:03:21.3]} 20. Bd3 {[%clk 0:03:07.4]} 20... Bb7 {[%clk 0:03:15.7]} 21. Bb2 {[%clk 0:03:03.7]} 21... Kh8 {[%clk 0:02:31.3]} 22. e4 {[%clk 0:02:58]} 22... Ng4 {[%clk 0:02:18.2]} 23. e5 {[%clk 0:02:38.3]} 23... Qh6 {[%clk 0:02:08.5]} 24. h3 {[%clk 0:02:02.5]} 24... Ne3 {[%clk 0:01:58.9]} 25. Qf2 {[%clk 0:01:43]} 25... Nxf1 {[%clk 0:01:44.1]} 26. Rxf1 {[%clk 0:01:41.8]} 26... Bc8 {[%clk 0:01:03.3]} 27. d5 {[%clk 0:01:28.4]} 27... Bxh3 {[%clk 0:00:15.5]} 28. gxh3 {[%clk 0:01:16.9]} 28... Qxh3 {[%clk 0:00:14.6]} 29. Bc2 {[%clk 0:00:59.2]} 29... Rbd8 {[%clk 0:00:12.7]} 30. d6 {[%clk 0:00:55.3]} 30... Rde8 {[%clk 0:00:07.3]} 31. d7 {[%clk 0:00:46.3]} 31... Rd8 {[%clk 0:00:06]} 32. Bf5 {[%clk 0:00:41.9]} 32... g6 {[%clk 0:00:04]} 33. Bxh3 {[%clk 0:00:40.2]} 33... Rxd7 {[%clk 0:00:02.9]} 34. Qf6+ {[%clk 0:00:37.5]} 34... Kg8 {[%clk 0:00:00.4]} 35. e6 {[%clk 0:00:34.7]} 1-0

[Event "Live Chess"]
[Site "Chess.com"]
[Date "2011.01.20"]
[Round "-"]
[White "hipposcottimus"]
[Black "anaksagor"]
[Result "1-0"]
[CurrentPosition "r1bQkbnr/1p3q1p/p1np4/1B2p3/P3P2B/8/1PP2PPP/RN2K2R b KQkq -"]
[Timezone "UTC"]
[ECO "C41"]
[ECOUrl "https://www.chess.com/openings/Philidor-Defense-3.d4"]
[UTCDate "2011.01.20"]
[UTCTime "14:01:40"]
[WhiteElo "1378"]
[BlackElo "1300"]
[TimeControl "540"]
[Termination "hipposcottimus won by checkmate"]
[StartTime "14:01:40"]
[EndDate "2011.01.20"]
[EndTime "14:03:15"]
[Link "https://www.chess.com/game/live/89499062"]

1. e4 {[%clk 0:09:00]} 1... e5 {[%clk 0:09:00]} 2. Nf3 {[%clk 0:08:57.8]} 2... d6 {[%clk 0:08:58.5]} 3. d4 {[%clk 0:08:54.6]} 3... Qf6 {[%clk 0:08:57.3]} 4. Bg5 {[%clk 0:08:48]} 4... Qe6 {[%clk 0:08:56.2]} 5. d5 {[%clk 0:08:46.5]} 5... Qd7 {[%clk 0:08:47.9]} 6. a4 {[%clk 0:08:41.9]} 6... f6 {[%clk 0:08:43.4]} 7. Bb5 {[%clk 0:08:39.9]} 7... c6 {[%clk 0:08:39.2]} 8. dxc6 {[%clk 0:08:38.1]} 8... Nxc6 {[%clk 0:08:38]} 9. Bh4 {[%clk 0:08:26]} 9... g5 {[%clk 0:08:36.2]} 10. Nxg5 {[%clk 0:08:23.9]} 10... fxg5 {[%clk 0:08:34.4]} 11. Qh5+ {[%clk 0:08:16.1]} 11... Qf7 {[%clk 0:08:28.8]} 12. Qxg5 {[%clk 0:08:14.4]} 12... a6 {[%clk 0:08:21.5]} 13. Qd8# {[%clk 0:08:09.9]} 1-0

[Event "Live Chess"]
[Site "Chess.com"]
[Date "2011.01.20"]
[Round "-"]
[White "chaitanyaponnuru"]
[Black "hipposcottimus"]
[Result "0-1"]
[CurrentPosition "r6k/pp4pp/4B3/2b2p2/4p1n1/4P3/PPP1Q1Pq/R1B2RK1 w - -"]
[Timezone "UTC"]
[ECO "D02"]
[ECOUrl "https://www.chess.com/openings/Queens-Pawn-Opening-Krause-Variation-3.dxc5"]
[UTCDate "2011.01.20"]
[UTCTime "13:45:48"]
[WhiteElo "1399"]
[BlackElo "1371"]
[TimeControl "240+4"]
[Termination "hipposcottimus won by checkmate"]
[StartTime "13:45:48"]
[EndDate "2011.01.20"]
[EndTime "13:53:12"]
[Link "https://www.chess.com/game/live/89494953"]

1. d4 {[%clk 0:04:00]} 1... d5 {[%clk 0:04:00]} 2. Nf3 {[%clk 0:03:53.1]} 2... c5 {[%clk 0:04:01.6]} 3. dxc5 {[%clk 0:03:54.2]} 3... Bg4 {[%clk 0:04:05.3]} 4. e3 {[%clk 0:03:53]} 4... Bxf3 {[%clk 0:04:08.2]} 5. Qxf3 {[%clk 0:03:54.7]} 5... e5 {[%clk 0:04:11.9]} 6. Bb5+ {[%clk 0:03:46.7]} 6... Nc6 {[%clk 0:04:10.5]} 7. Nc3 {[%clk 0:03:41.4]} 7... e4 {[%clk 0:04:11.4]} 8. Qd1 {[%clk 0:03:38.3]} 8... Nf6 {[%clk 0:04:10]} 9. O-O {[%clk 0:03:40.3]} 9... Bxc5 {[%clk 0:04:12.5]} 10. f3 {[%clk 0:03:21.9]} 10... O-O {[%clk 0:04:11.8]} 11. fxe4 {[%clk 0:03:19.4]} 11... dxe4 {[%clk 0:04:14.8]} 12. Kh1 {[%clk 0:03:17.5]} 12... Qc8 {[%clk 0:04:01.9]} 13. Bc4 {[%clk 0:03:10.9]} 13... Ng4 {[%clk 0:04:00.3]} 14. Qe2 {[%clk 0:02:59]} 14... Nce5 {[%clk 0:03:45.3]} 15. Bb3 {[%clk 0:02:51.7]} 15... Kh8 {[%clk 0:03:26.5]} 16. h3 {[%clk 0:02:41.8]} 16... f5 {[%clk 0:02:28.9]} 17. hxg4 {[%clk 0:02:33.8]} 17... Nxg4 {[%clk 0:02:31.5]} 18. Nd5 {[%clk 0:02:22.4]} 18... Qd8 {[%clk 0:01:57.5]} 19. Nf4 {[%clk 0:02:18.8]} 19... Rf6 {[%clk 0:01:50.1]} 20. Ne6 {[%clk 0:02:13.8]} 20... Rxe6 {[%clk 0:01:38.5]} 21. Bxe6 {[%clk 0:02:15.2]} 21... Qh4+ {[%clk 0:01:40.9]} 22. Kg1 {[%clk 0:02:01]} 22... Qh2# {[%clk 0:01:42.6]} 0-1

[Event "Live Chess"]
[Site "Chess.com"]
[Date "2011.01.20"]
[Round "-"]
[White "hipposcottimus"]
[Black "JLG777"]
[Result "0-1"]
[CurrentPosition "7r/4RBp1/p4k2/3p4/1Q1b1q2/8/P4PPP/2r1N1K1 w - -"]
[Timezone "UTC"]
[ECO "B20"]
[ECOUrl "https://www.chess.com/openings/Sicilian-Defense"]
[UTCDate "2011.01.20"]
[UTCTime "13:36:33"]
[WhiteElo "1362"]
[BlackElo "1383"]
[TimeControl "300"]
[Termination "JLG777 won on time"]
[StartTime "13:36:33"]
[EndDate "2011.01.20"]
[EndTime "13:44:21"]
[Link "https://www.chess.com/game/live/89492550"]

1. e4 {[%clk 0:05:00]} 1... c5 {[%clk 0:05:00]} 2. Bb5 {[%clk 0:04:55.8]} 2... a6 {[%clk 0:04:56.9]} 3. Be2 {[%clk 0:04:55.3]} 3... Nc6 {[%clk 0:04:54.9]} 4. Nf3 {[%clk 0:04:55]} 4... e6 {[%clk 0:04:53.4]} 5. c4 {[%clk 0:04:54.3]} 5... Qc7 {[%clk 0:04:51.9]} 6. d4 {[%clk 0:04:47.7]} 6... cxd4 {[%clk 0:04:50]} 7. Nxd4 {[%clk 0:04:46.8]} 7... Nf6 {[%clk 0:04:48.1]} 8. Bg5 {[%clk 0:04:43.7]} 8... Be7 {[%clk 0:04:46.3]} 9. Nxc6 {[%clk 0:04:34.1]} 9... bxc6 {[%clk 0:04:43.1]} 10. Bd3 {[%clk 0:04:26.9]} 10... Qb6 {[%clk 0:04:39.9]} 11. O-O {[%clk 0:04:21.3]} 11... Qxb2 {[%clk 0:04:36.8]} 12. Nd2 {[%clk 0:04:03.9]} 12... Qd4 {[%clk 0:04:31.3]} 13. Nf3 {[%clk 0:03:57.3]} 13... Qb6 {[%clk 0:04:24.8]} 14. Rb1 {[%clk 0:03:54.4]} 14... Qc7 {[%clk 0:04:21]} 15. e5 {[%clk 0:03:49.8]} 15... Ng8 {[%clk 0:04:18.1]} 16. Re1 {[%clk 0:03:46.2]} 16... f6 {[%clk 0:04:16.7]} 17. exf6 {[%clk 0:03:36.3]} 17... Nxf6 {[%clk 0:04:14.7]} 18. Qe2 {[%clk 0:02:54]} 18... O-O {[%clk 0:04:11.3]} 19. Bxf6 {[%clk 0:02:46.2]} 19... Bxf6 {[%clk 0:04:08.8]} 20. Qe4 {[%clk 0:02:41.8]} 20... d5 {[%clk 0:04:04.3]} 21. Qxh7+ {[%clk 0:02:40.1]} 21... Kf7 {[%clk 0:04:01]} 22. Bg6+ {[%clk 0:02:38.2]} 22... Ke7 {[%clk 0:03:58.9]} 23. cxd5 {[%clk 0:02:17.1]} 23... cxd5 {[%clk 0:03:56.1]} 24. Rbd1 {[%clk 0:02:14.7]} 24... Bb7 {[%clk 0:03:51.2]} 25. Rc1 {[%clk 0:02:09.4]} 25... Qf4 {[%clk 0:03:34.7]} 26. Rb1 {[%clk 0:01:50.9]} 26... Rh8 {[%clk 0:03:31.2]} 27. Rxb7+ {[%clk 0:01:48]} 27... Kd6 {[%clk 0:03:29.9]} 28. Rxe6+ {[%clk 0:01:28.8]} 28... Kxe6 {[%clk 0:03:27.4]} 29. Bf7+ {[%clk 0:01:14.4]} 29... Kd6 {[%clk 0:03:13.9]} 30. Qb1 {[%clk 0:00:47.6]} 30... Rac8 {[%clk 0:03:00.3]} 31. Qb6+ {[%clk 0:00:22.7]} 31... Rc6 {[%clk 0:02:57]} 32. Qb1 {[%clk 0:00:17]} 32... Rc1+ {[%clk 0:02:53.7]} 33. Ne1 {[%clk 0:00:12]} 33... Bd4 {[%clk 0:02:40]} 34. Qb4+ {[%clk 0:00:04.8]} 34... Ke5 {[%clk 0:02:33.5]} 35. Re7+ {[%clk 0:00:02.5]} 35... Kf6 {[%clk 0:02:27.6]} 0-1

[Event "Live Chess"]
[Site "Chess.com"]
[Date "2011.01.20"]
[Round "-"]
[White "hipposcottimus"]
[Black "clifford513"]
[Result "1-0"]
[CurrentPosition "r6r/1Q4p1/k2b4/p6p/4B3/4BN2/P5PP/7K b - -"]
[Timezone "UTC"]
[ECO "C57"]
[ECOUrl "https://www.chess.com/openings/Italian-Game-Fried-Liver-Attack-6...Kxf7-7.Qf3"]
[UTCDate "2011.01.20"]
[UTCTime "05:05:02"]
[WhiteElo "1370"]
[BlackElo "1438"]
[TimeControl "600"]
[Termination "hipposcottimus won by checkmate"]
[StartTime "05:05:02"]
[EndDate "2011.01.20"]
[EndTime "05:17:00"]
[Link "https://www.chess.com/game/live/89387771"]

1. e4 {[%clk 0:10:00]} 1... e5 {[%clk 0:10:00]} 2. Nf3 {[%clk 0:09:59.6]} 2... Nc6 {[%clk 0:09:55.4]} 3. Bc4 {[%clk 0:09:58.6]} 3... Nf6 {[%clk 0:09:50.8]} 4. Ng5 {[%clk 0:09:56.7]} 4... d5 {[%clk 0:09:45.9]} 5. exd5 {[%clk 0:09:56.2]} 5... Nxd5 {[%clk 0:09:43.4]} 6. Nxf7 {[%clk 0:09:53.6]} 6... Kxf7 {[%clk 0:09:38.9]} 7. Qf3+ {[%clk 0:09:49.4]} 7... Ke8 {[%clk 0:09:36.1]} 8. Bxd5 {[%clk 0:09:47.7]} 8... Qe7 {[%clk 0:09:15.7]} 9. d3 {[%clk 0:09:34.6]} 9... Nd4 {[%clk 0:09:10.7]} 10. Qd1 {[%clk 0:09:20.1]} 10... c6 {[%clk 0:08:58.7]} 11. Be4 {[%clk 0:09:13]} 11... h5 {[%clk 0:08:39.6]} 12. O-O {[%clk 0:09:11.1]} 12... Be6 {[%clk 0:08:27.1]} 13. f4 {[%clk 0:09:02.7]} 13... Qc5 {[%clk 0:08:03.4]} 14. Rf2 {[%clk 0:08:43.2]} 14... Bg4 {[%clk 0:07:55.4]} 15. Qd2 {[%clk 0:08:21.9]} 15... Be7 {[%clk 0:07:38.1]} 16. fxe5 {[%clk 0:08:12.4]} 16... Qxe5 {[%clk 0:07:09]} 17. c3 {[%clk 0:07:57.8]} 17... Ne2+ {[%clk 0:06:56.5]} 18. Rxe2 {[%clk 0:07:42.5]} 18... Bxe2 {[%clk 0:06:53.8]} 19. Qxe2 {[%clk 0:07:41.9]} 19... Kd8 {[%clk 0:06:42.3]} 20. Nd2 {[%clk 0:07:13.4]} 20... Bd6 {[%clk 0:06:39.8]} 21. Nf3 {[%clk 0:07:10.9]} 21... Qc5+ {[%clk 0:06:29.6]} 22. d4 {[%clk 0:07:05]} 22... Qb6 {[%clk 0:06:10.6]} 23. Bg5+ {[%clk 0:06:45.9]} 23... Kc7 {[%clk 0:06:08]} 24. Bg6 {[%clk 0:06:41]} 24... c5 {[%clk 0:05:51.2]} 25. Qe6 {[%clk 0:06:20.2]} 25... Qxb2 {[%clk 0:05:28.8]} 26. Rb1 {[%clk 0:05:50.9]} 26... Qxc3 {[%clk 0:05:22]} 27. dxc5 {[%clk 0:05:38.1]} 27... Qxc5+ {[%clk 0:05:15.9]} 28. Kh1 {[%clk 0:05:19.9]} 28... a6 {[%clk 0:04:22.9]} 29. Rc1 {[%clk 0:05:15.8]} 29... Qxc1+ {[%clk 0:04:12.4]} 30. Bxc1 {[%clk 0:05:15.4]} 30... a5 {[%clk 0:03:48.6]} 31. Qf7+ {[%clk 0:05:05.9]} 31... Kc6 {[%clk 0:03:43.8]} 32. Be4+ {[%clk 0:04:53.3]} 32... Kb6 {[%clk 0:03:41.2]} 33. Be3+ {[%clk 0:04:50.8]} 33... Ka6 {[%clk 0:03:35.5]} 34. Qxb7# {[%clk 0:04:44.1]} 1-0

[Event "Live Chess"]
[Site "Chess.com"]
[Date "2011.01.20"]
[Round "-"]
[White "wowzer"]
[Black "hipposcottimus"]
[Result "0-1"]
[CurrentPosition "r4rk1/ppp2pp1/2b4p/2b2N2/4p2P/2P2P2/PP2KnP1/RNB4R b - -"]
[Timezone "UTC"]
[ECO "C50"]
[ECOUrl "https://www.chess.com/openings/Italian-Game"]
[UTCDate "2011.01.20"]
[UTCTime "04:48:12"]
[WhiteElo "1190"]
[BlackElo "1359"]
[TimeControl "480"]
[Termination "hipposcottimus won by resignation"]
[StartTime "04:48:12"]
[EndDate "2011.01.20"]
[EndTime "04:51:19"]
[Link "https://www.chess.com/game/live/89384444"]

1. e4 {[%clk 0:08:00]} 1... e5 {[%clk 0:08:00]} 2. Bc4 {[%clk 0:07:56.4]} 2... Nc6 {[%clk 0:07:59.1]} 3. Nf3 {[%clk 0:07:52.2]} 3... Nf6 {[%clk 0:07:58.1]} 4. c3 {[%clk 0:07:50.8]} 4... Nxe4 {[%clk 0:07:57]} 5. d3 {[%clk 0:07:44.8]} 5... Nf6 {[%clk 0:07:55.6]} 6. Nh4 {[%clk 0:07:28.6]} 6... d5 {[%clk 0:07:52.7]} 7. Bb5 {[%clk 0:07:25.6]} 7... Bd7 {[%clk 0:07:49.8]} 8. Nf3 {[%clk 0:07:00.5]} 8... Bd6 {[%clk 0:07:42.8]} 9. Ng5 {[%clk 0:06:54.7]} 9... O-O {[%clk 0:07:37.4]} 10. Bxc6 {[%clk 0:06:45]} 10... Bxc6 {[%clk 0:07:34.3]} 11. h4 {[%clk 0:06:34.5]} 11... h6 {[%clk 0:07:30.6]} 12. Nf3 {[%clk 0:06:23.3]} 12... e4 {[%clk 0:07:29.7]} 13. dxe4 {[%clk 0:06:21.1]} 13... dxe4 {[%clk 0:07:26]} 14. Nd4 {[%clk 0:06:18.3]} 14... Bc5 {[%clk 0:07:13.8]} 15. Nf5 {[%clk 0:06:11.9]} 15... Qxd1+ {[%clk 0:07:10.2]} 16. Kxd1 {[%clk 0:06:09.1]} 16... Ng4 {[%clk 0:07:09.7]} 17. f3 {[%clk 0:06:01.3]} 17... Nf2+ {[%clk 0:07:08.4]} 18. Ke2 {[%clk 0:05:54.3]} 0-1

[Event "Live Chess"]
[Site "Chess.com"]
[Date "2011.01.18"]
[Round "-"]
[White "Simon_Templar"]
[Black "hipposcottimus"]
[Result "1-0"]
[CurrentPosition "r1bQ3k/2p3pp/2p5/p7/2BP4/8/PPn3PP/5RK1 b - -"]
[Timezone "UTC"]
[ECO "C55"]
[ECOUrl "https://www.chess.com/openings/Italian-Game-Two-Knights-Defense-4.O-O"]
[UTCDate "2011.01.18"]
[UTCTime "04:03:40"]
[WhiteElo "1463"]
[BlackElo "1354"]
[TimeControl "360"]
[Termination "Simon_Templar won by checkmate"]
[StartTime "04:03:40"]
[EndDate "2011.01.18"]
[EndTime "04:07:41"]
[Link "https://www.chess.com/game/live/88714576"]

1. e4 {[%clk 0:06:00]} 1... e5 {[%clk 0:06:00]} 2. Nf3 {[%clk 0:05:58.3]} 2... Nc6 {[%clk 0:05:59.7]} 3. Bc4 {[%clk 0:05:57.2]} 3... Nf6 {[%clk 0:05:59.4]} 4. O-O {[%clk 0:05:56.1]} 4... d5 {[%clk 0:05:58.9]} 5. exd5 {[%clk 0:05:54.6]} 5... Nxd5 {[%clk 0:05:58.6]} 6. d4 {[%clk 0:05:48]} 6... e4 {[%clk 0:05:56.2]} 7. Ne5 {[%clk 0:05:42.8]} 7... Be7 {[%clk 0:05:52.4]} 8. Nxc6 {[%clk 0:05:39]} 8... bxc6 {[%clk 0:05:52.1]} 9. Be3 {[%clk 0:05:17.4]} 9... O-O {[%clk 0:05:49.3]} 10. Nd2 {[%clk 0:05:10.7]} 10... f5 {[%clk 0:05:02.3]} 11. f3 {[%clk 0:04:58.7]} 11... a5 {[%clk 0:04:58.2]} 12. fxe4 {[%clk 0:04:50.2]} 12... fxe4 {[%clk 0:04:51.8]} 13. Nxe4 {[%clk 0:04:49.1]} 13... Kh8 {[%clk 0:04:51.4]} 14. Qh5 {[%clk 0:04:27.8]} 14... Nxe3 {[%clk 0:04:46.1]} 15. Rxf8+ {[%clk 0:04:22.8]} 15... Qxf8 {[%clk 0:04:38.2]} 16. Ng5 {[%clk 0:04:13]} 16... Bxg5 {[%clk 0:04:27.7]} 17. Qxg5 {[%clk 0:04:11.2]} 17... Nxc2 {[%clk 0:04:12.1]} 18. Rf1 {[%clk 0:04:06.2]} 18... Qd8 {[%clk 0:04:05.3]} 19. Qxd8# {[%clk 0:04:03.9]} 1-0